[Event "Frauenbundesliga 2021-22"]
[Site "Germany"]
[Date "2022.05.28"]
[Round "10.23"]
[White "Ionica, Iulia-Ionela"]
[Black "Miturova, Magdalena"]
[Result "1-0"]
[ECO "C45"]
[WhiteElo "2186"]
[BlackElo "2217"]
[Annotator "TA"]
[PlyCount "69"]
[EventDate "2021.11.26"]
[EventType "team-tourn"]
[EventCountry "GER"]
[SourceTitle "playchess.com"]
[Source "ChessBase"]
[SourceQuality "1"]
[WhiteTeam "Hemer"]
[BlackTeam "Rodewisch"]
[TimeControl "40/5400+30:1800+30"]

{[%evp 14,69,0,0,0,0,31,24,64,55,69,48,69,58,106,113,131,111,115,100,108,97,108,117,97,83,165,163,166,129,202,128,172,164,161,155,239,256,247,252,272,283,545,518,1204,1101,1525,1302,1188,645,811,645,635,629,29996,29997,29997,29998]} 1. e4 {[%emt 0:00:46] Besenthal,K} e5 {[%emt 0:00:06]} 2. Nf3 {[%emt 0:00:17]} Nc6 {[%emt 0:00:07]} 3. d4 {[%emt 0:00:33]} exd4 {[%emt 0:00:13]} 4. Nxd4 {[%emt 0:00:08]} Bc5 {[%emt 0:01:53]} 5. Nb3 {[%emt 0:00:37]} Bb6 {[%emt 0:00:29]} 6. Nc3 {[%emt 0:00:22]} Nf6 {[%emt 0:01:41]} 7. Bg5 {[%emt 0:01:18]} h6 {[%emt 0:00:18]} 8. Bh4 {[%emt 0:00:05]} d6 {[%emt 0:01:49][%cal Of6e4] C45: Scotch Game.} 9. f3 {[%emt 0:02:21]} Be6 {[%emt 0:02:28]} 10. Bb5 {[%emt 0:05:51]} a6 {[%emt 0:18:52] White has an edge.} 11. Bxc6+ {[%emt 0:01:07]} bxc6 {[%emt 0:01:10]} 12. Qe2 {[%emt 0:04:01] [#]} a5 $146 {[%emt 0:04:26]} ({Predecessor:} 12... g5 13. Bf2 Bxf2+ 14. Qxf2 Qe7 15. O-O-O a5 16. Nd4 Bd7 17. h4 g4 18. Nf5 Qe5 19. f4 Nxe4 20. Nxd6+ Qxd6 21. Nxe4 Qe7 22. Qd4 {1-0 (22) Giri,A (2782)-Fressinet,L (2687) Paris 2016 CBM 173 [Besenthal,K]}) 13. O-O-O {[%emt 0:07:12]} g5 {[%emt 0:09:52]} (13... O-O $14) 14. Bf2 $16 {[%emt 0:01:30]} Nd7 {[%emt 0:07:00]} 15. Nd4 {[%emt 0:14:15] White is more active.} Bxd4 {[%emt 0:04:35]} 16. Bxd4 {[%emt 0:00:26]} Rg8 {[%emt 0:00:12]} 17. e5 {[%emt 0:05:38]} c5 {[%emt 0:02:54]} 18. Bf2 {[%emt 0:04:15]} Nxe5 {[%emt 0:01:07] [#]} 19. Bxc5 $1 {[%emt 0:01:44][%cal Oh2h4]} Qe7 {[%emt 0:07:29]} (19... Rg6 $16 {keeps fighting.}) 20. Bd4 $18 {[%emt 0:02:19]} f6 {[%emt 0:03:19]} 21. Rhe1 {[%emt 0:02:53]} Kf7 {[%emt 0:07:46]} (21... Kf8 $16) 22. h4 {[%emt 0:04:47]} Rab8 {[%emt 0:00:42]} 23. hxg5 {[%emt 0:12:54]} hxg5 {[%emt 0:00:07]} 24. g3 {[%emt 0:08:39] Strongly threatening f4.} c5 {[%emt 0:07:44]} (24... Rbe8 $16 25. Qe3 Nc6) 25. Bxe5 {[%emt 0:00:37]} dxe5 {[%emt 0:00:35]} 26. f4 {[%emt 0:12:23][%cal Bf3f4,Bf4e5,Be5f6][%mdl 32]} Qb7 {[%emt 0:01:04]} 27. b3 {[%emt 0:00:07]} c4 $2 {[%emt 0:05:19]} (27... gxf4 28. gxf4 Qg2) 28. Ne4 {[%emt 0:01:15]} Kg7 {[%emt 0:02:58]} (28... Qe7 $142 29. Nd6+ Kg7 30. fxg5 Rgf8) 29. fxe5 {[%emt 0:01:29] [#] Threatens to win with Qh5.} cxb3 {[%emt 0:02:49]} 30. exf6+ {[%emt 0:01:40]} Kg6 {[%emt 0:00:37]} 31. axb3 {[%emt 0:01:28]} Qb4 {[%emt 0:01:07]} 32. Nd6 {[%emt 0:02:23]} Qa3+ {[%emt 0:04:22]} 33. Kb1 {[%emt 0:00:05] White threatens Qe4+ and mate.} Bxb3 {[%emt 0:01:06] ...Bc4+ is the strong threat.} 34. Qe4+ {[%emt 0:00:58]} Kxf6 {[%emt 0:00:04]} 35. Qf5+ {[%emt 0:00:23] Weighted Error Value: White=0.28 (precise) /Black=0.59} 1-0

[Event "Frauenbundesliga 2021-22"]
[Site "Germany"]
[Date "2022.05.28"]
[Round "10.24"]
[White "Kubikova, Alena"]
[Black "Naumenko, Valerija"]
[Result "0-1"]
[ECO "C90"]
[WhiteElo "2093"]
[BlackElo "1750"]
[Annotator "TA"]
[PlyCount "84"]
[EventDate "2021.11.26"]
[EventType "team-tourn"]
[EventCountry "GER"]
[SourceTitle "playchess.com"]
[Source "ChessBase"]
[SourceQuality "1"]
[WhiteTeam "Rodewisch"]
[BlackTeam "Hemer"]
[TimeControl "40/5400+30:1800+30"]

{[%evp 18,84,28,16,31,12,21,0,26,-12,-2,7,0,8,6,-25,25,18,27,13,51,-83,-80,-76,-80,-90,-83,-84,-87,-215,-223,-220,-226,-331,-323,-670,-701,-686,-660,-662,-429,-537,-512,-418,-400,-686,-538,-733,-510,-604,-566,-655,-641,-595,-562,-635,-425,-425,-425,-1270,-1259,-2303,-1521,-29982,-29983,-29983,-29984,-29982,-6503]} 1. e4 {[%emt 0:00:07]} e5 {[%emt 0:00:04]} 2. Nf3 {[%emt 0:00:06]} Nc6 {[%emt 0:00:04]} 3. Bb5 {[%emt 0:00:33]} a6 {[%emt 0:00:08]} 4. Ba4 {[%emt 0:00:06]} Nf6 {[%emt 0:00:06]} 5. O-O {[%emt 0:00:20]} b5 {[%emt 0:00:04]} 6. Bb3 {[%emt 0:00:05]} Be7 {[%emt 0:00:05]} 7. Re1 {[%emt 0:02:20]} d6 {[%emt 0:00:12]} 8. a4 {[%emt 0:03:07]} Bd7 {[%emt 0:00:11]} 9. c3 {[%emt 0:02:47]} O-O {[%emt 0:10:38]} 10. d4 {[%emt 0:15:14]} h6 {[%emt 0:04:30] C90: Closed Ruy Lopez with 7...d6: Early deviations.} 11. h3 {[%emt 0:21:15]} Re8 {[%emt 0:03:54]} 12. Na3 {[%emt 0:15:14]} Qb8 {[%emt 0:13:24] [#] The position is equal.} 13. dxe5 $146 {[%emt 0:16:05]} ({Predecessor:} 13. Nc2 Bd8 14. dxe5 Nxe5 15. Nxe5 dxe5 16. Ne3 Qb7 17. Qf3 b4 18. Bc2 a5 19. Bd2 {1-0 (50) Sukhorskij,V (2144)-Sherwood,R (2004) LSS email 2011}) 13... Nxe5 {[%emt 0:01:10]} 14. Nxe5 {[%emt 0:01:25]} dxe5 {[%emt 0:00:19]} 15. Nc2 {[%emt 0:11:40]} Bc6 {[%emt 0:15:17]} 16. f3 {[%emt 0:02:30]} Bc5+ {[%emt 0:12:04]} ({Black should play} 16... bxa4 17. Bxa4 Bxa4 18. Rxa4 Nh5) 17. Kh2 $11 {[%emt 0:01:19]} Rd8 {[%emt 0:05:02]} 18. Qe2 {[%emt 0:00:29]} Nh5 {[%emt 0:05:32]} 19. axb5 {[%emt 0:01:54]} (19. Nb4 $14 {keeps the upper hand.} Bxb4 20. cxb4) 19... Bxb5 $17 {[%emt 0:10:42]} 20. c4 {[%emt 0:00:37]} (20. Bc4 $2 Bxc4 21. Qxc4 Bf2 $19) 20... Bc6 {[%emt 0:00:50]} 21. Ba4 {[%emt 0:01:01]} Bxa4 {[%emt 0:02:44] Black is much more active.} 22. Rxa4 {[%emt 0:00:06]} a5 $36 {[%emt 0:04:31][%mdl 2048] Prevents b4. White is under strong pressure.} 23. g3 {[%emt 0:01:26] This move loses the game for White.} (23. Ne3 $17) 23... Qb3 $19 {[%emt 0:00:21]} 24. Ra1 {[%emt 0:00:18] [#]} Rd3 {[%emt 0:01:20]} 25. Be3 {[%emt 0:00:47] [#]} (25. Kg2 $142) 25... Rad8 $1 {[%emt 0:02:46]} 26. Rad1 $2 {[%emt 0:01:02]} ({Not} 26. Bxc5 $2 Rd2 27. Nd4 R8xd4 28. Bxd4 Qc2 $19) (26. Rxa5 Nf4 27. gxf4 Bxe3 28. Ra3 (28. Nxe3 $2 Rd2 $19) 28... Bxf4+ 29. Kg2 Qxc4 30. Rxd3 Qxd3 31. Qxd3 Rxd3 32. Re2) 26... Rxd1 {[%emt 0:01:45]} 27. Rxd1 {[%emt 0:00:31]} Rxd1 {[%emt 0:00:20]} 28. Bxc5 {[%emt 0:00:51]} Rd3 {[%emt 0:02:28]} 29. Ne1 {[%emt 0:00:16]} Rd7 {[%emt 0:00:54]} 30. Be3 {[%emt 0:00:42]} Nf6 {[%emt 0:00:25]} 31. c5 {[%emt 0:00:46]} (31. Kg2 $142) 31... c6 {[%emt 0:00:27] ...Qd1 is the strong threat.} 32. h4 {[%emt 0:00:44]} Ne8 {[%emt 0:00:40] Strongly threatening ...Qd1.} 33. Kh3 {[%emt 0:00:32]} Nc7 {[%emt 0:00:18]} 34. f4 {[%emt 0:00:31]} exf4 {[%emt 0:00:26]} 35. Bxf4 {[%emt 0:00:21]} Nb5 {[%emt 0:02:25]} 36. Nf3 {[%emt 0:00:41]} Nd4 {[%emt 0:00:37]} 37. Nxd4 {[%emt 0:00:10]} Rxd4 {[%emt 0:00:03] KQR-KQB} 38. Qa6 {[%emt 0:00:39]} (38. Qg4 $142 Qe6 39. Qxe6 fxe6 40. b3) 38... Qe6+ {[%emt 0:00:20]} 39. Kh2 {[%emt 0:00:22]} Rxe4 {[%emt 0:00:31] ( -> ...Re2+)} 40. Qa8+ {[%emt 0:00:49]} Kh7 {[%emt 0:00:10] Black mates.} 41. Qa6 {[%emt 0:04:15]} Re2+ {[%emt 0:00:09]} 42. Kg1 {[%emt 0:00:08]} Qe4 {[%emt 0:00:08] Weighted Error Value: White=0.99/Black=0.55} 0-1

[Event "Frauenbundesliga 2021-22"]
[Site "Germany"]
[Date "2022.05.28"]
[Round "10.25"]
[White "Abdumalik, Zhansaya"]
[Black "Saduakassova, Dinara"]
[Result "1-0"]
[ECO "C54"]
[WhiteElo "2489"]
[BlackElo "2446"]
[Annotator "TA"]
[PlyCount "113"]
[EventDate "2021.11.26"]
[EventType "team-tourn"]
[EventCountry "GER"]
[SourceTitle "playchess.com"]
[Source "ChessBase"]
[SourceQuality "1"]
[WhiteTeam "Baden-Baden"]
[BlackTeam "Schwaebisch Hall"]
[TimeControl "40/5400+30:1800+30"]

{[%evp 15,113,-2,0,0,0,0,0,35,23,9,10,31,44,40,43,34,34,31,56,31,33,33,58,40,29,25,76,75,99,29,27,48,25,27,28,25,131,124,125,84,77,79,89,84,122,105,105,67,61,13,112,102,112,75,81,73,90,64,76,72,78,75,101,107,113,109,257,247,254,238,270,258,479,476,479,473,539,539,539,536,537,520,519,514,1123,1145,1308,1199,4810,2301,1477,1320,1888,1694,3422,3177,6206,6183,6079,5442]} 1. e4 {[%emt 0:00:03]} e5 {[%emt 0:00:08]} 2. Nf3 {[%emt 0:00:06]} Nc6 {[%emt 0:00:08]} 3. Bc4 {[%emt 0:00:05]} Bc5 {[%emt 0:00:15]} 4. c3 {[%emt 0:00:05]} Nf6 {[%emt 0:00:15]} 5. d4 {[%emt 0:00:25]} exd4 {[%emt 0:00:06]} 6. cxd4 {[%emt 0:00:05]} Bb4+ {[%emt 0:00:46]} 7. Nbd2 {[%emt 0:00:38]} d5 {[%emt 0:12:21]} 8. exd5 {[%emt 0:00:06]} Nxd5 {[%emt 0:00:53]} 9. O-O {[%emt 0:00:06] C54: Giuoco Piano: 4 c3 Nf6, main lines with 5 d4 and 5 d3.} O-O {[%emt 0:00:55]} 10. a3 {[%emt 0:00:06]} Be7 {[%emt 0:11:28]} 11. Re1 {[%emt 0:02:44] The position is equal.} Bf5 {[%emt 0:05:29]} 12. Ba2 {[%emt 0:01:10] [#]} Bf6 $146 {[%emt 0:08:08]} ({Predecessor:} 12... Nb6 13. Ne4 Bxe4 14. Rxe4 Bf6 15. Bf4 Nd5 16. Bg3 Nce7 17. Qb3 Rb8 18. Rae1 b5 {½-½ (60) Gokerkan,C (2465)-Yoo,C (2485) Chess.com INT 2021}) 13. Ne4 {[%emt 0:05:46]} Bxe4 {[%emt 0:02:20]} 14. Rxe4 {[%emt 0:01:55]} Nce7 {[%emt 0:04:55][%cal Bc6e7,Be7f5,Bf5g7,Bg7e6][%mdl 32]} 15. Qd3 {[%emt 0:03:10]} c6 {[%emt 0:03:37]} 16. h4 {[%emt 0:00:50][%cal Bh2h4,Bh4h5][%mdl 32]} g6 {[%emt 0:12:11]} 17. Bd2 {[%emt 0:05:55][%cal Oh4h5]} Nf5 {[%emt 0:02:54][%cal Rf5h4]} 18. h5 {[%emt 0:08:20]} Re8 {[%emt 0:02:32]} 19. Rxe8+ {[%emt 0:04:28]} Qxe8 {[%emt 0:00:06]} 20. Re1 {[%emt 0:00:24]} Qf8 {[%emt 0:05:15]} (20... Qd7 $11) 21. g4 $16 {[%emt 0:04:04]} Ng7 {[%emt 0:03:19]} 22. Ne5 {[%emt 0:08:03]} ({White should play} 22. g5 $16 Be7 23. Qe4) 22... Rd8 {[%emt 0:04:36]} 23. Qf3 {[%emt 0:03:49]} Bxe5 {[%emt 0:02:08]} 24. Rxe5 {[%emt 0:02:27][%cal Ra2d5]} Ne6 {[%emt 0:04:35]} 25. Bxd5 {[%emt 0:03:05]} Rxd5 {[%emt 0:04:21]} (25... cxd5 $11 {remains equal.} 26. Rxd5 Nxd4) 26. Rxd5 {[%emt 0:03:35]} cxd5 {[%emt 0:00:14]} 27. hxg6 {[%emt 0:01:26]} hxg6 {[%emt 0:00:38]} 28. Qxd5 $11 {[%emt 0:00:06][%mdl 4096] Endgame KQB-KQN} Qc8 {[%emt 0:00:22]} 29. Qe4 {[%emt 0:02:46] Prevents Qc2. White is more active.} Qc4 {[%emt 0:03:34]} 30. Bc3 {[%emt 0:05:12]} ({Much less strong is} 30. Qxb7 Nxd4 31. Kg2 Nb3 32. Qb8+ Kh7 33. Qh2+ Kg8 34. Qb8+ Kh7 35. Qh2+ Kg8 $14) 30... b6 {[%emt 0:01:25]} 31. Qe5 {[%emt 0:05:37]} Nc7 {[%emt 0:00:30]} 32. Bd2 {[%emt 0:05:29]} (32. Kg2 $14) 32... Kh7 {[%emt 0:02:23]} (32... Ne6 $11) 33. Qe7 $16 {[%emt 0:03:09]} Nb5 {[%emt 0:02:19]} 34. Qh4+ {[%emt 0:03:10]} Kg8 {[%emt 0:00:09]} 35. Be3 $36 {[%emt 0:01:01][%mdl 2048] White is in control.} Qe6 {[%emt 0:01:07]} 36. Qg5 {[%emt 0:03:36]} Nc7 {[%emt 0:00:39]} 37. Kh2 {[%emt 0:08:56]} Nd5 {[%emt 0:00:26]} 38. Kg3 {[%emt 0:01:01]} Qe4 {[%emt 0:01:02] [#]} 39. Qe5 $1 {[%emt 0:03:03]} Qh1 {[%emt 0:00:44]} 40. f3 {[%emt 0:00:46]} Qe1+ {[%emt 0:00:39] This move loses the game for Black.} (40... Nxe3 $16 41. Qe8+ (41. Qxe3 Kf8 $16) 41... Kg7 42. Qxe3 Kf8) 41. Bf2 $18 {[%emt 0:30:20]} Qxe5+ {[%emt 0:04:53]} 42. dxe5 {[%emt 0:00:00] KB-KN} g5 {[%emt 0:02:33]} 43. Be1 {[%emt 0:00:00]} Kg7 $2 {[%emt 0:00:27]} (43... Nf4 {is a better defense.} 44. Bd2 Ne6) 44. Bd2 {[%emt 0:00:00] White is clearly winning.} Kg6 {[%emt 0:00:05]} 45. Kf2 {[%emt 0:00:00]} f5 {[%emt 0:12:54] [#]} 46. exf6 {[%emt 0:00:00]} Kxf6 {[%emt 0:00:16]} 47. Ke2 {[%emt 0:00:00]} Ne7 {[%emt 0:01:03]} 48. Kd3 {[%emt 0:00:00]} Ng6 {[%emt 0:00:51]} 49. Ke4 {[%emt 0:00:00]} Nh4 {[%emt 0:00:36]} (49... b5 $142 50. Kd5 Nh4) 50. Be3 {[%emt 0:00:00]} Ng2 {[%emt 0:00:20]} 51. b4 {[%emt 0:00:00] aiming for b5.} Ne1 {[%emt 0:01:37]} 52. a4 {[%emt 0:00:00][%cal Ba3a4,Ba4a5,Ba5a6][%mdl 32] And now b5 would win.} Nc2 {[%emt 0:01:17]} 53. Bd2 {[%emt 0:00:00] Kd3 is the strong threat.} Na3 {[%emt 0:00:19]} 54. Kd5 {[%emt 0:00:00]} b5 {[%emt 0:02:07]} 55. a5 {[%emt 0:00:00] Black must now prevent a6.} Nc4 {[%emt 0:01:10]} 56. Bc3+ {[%emt 0:00:00]} Ke7 {[%emt 0:00:57]} 57. a6 {[%emt 0:00:00] Weighted Error Value: White=0.10 (very precise) /Black=0.29 (precise)} 1-0

[Event "Frauenbundesliga 2021-22"]
[Site "Germany"]
[Date "2022.05.28"]
[Round "10.26"]
[White "Kashlinskaya, Alina"]
[Black "Kosteniuk, Alexandra"]
[Result "1-0"]
[ECO "E48"]
[WhiteElo "2498"]
[BlackElo "2513"]
[Annotator "TA"]
[PlyCount "135"]
[EventDate "2021.11.26"]
[EventType "team-tourn"]
[EventCountry "GER"]
[SourceTitle "playchess.com"]
[Source "ChessBase"]
[SourceQuality "1"]
[WhiteTeam "Schwaebisch Hall"]
[BlackTeam "Baden-Baden"]
[TimeControl "40/5400+30:1800+30"]

{[%evp 11,135,0,4,-22,-1,0,7,7,31,34,30,26,52,37,33,33,79,74,98,99,96,102,118,106,122,131,126,81,88,91,86,68,82,60,100,96,109,93,88,88,154,160,145,148,150,42,127,131,130,133,133,147,152,133,137,135,145,137,217,133,142,137,136,135,135,137,137,133,154,155,272,310,278,306,308,298,297,315,306,304,287,157,209,0,230,0,262,197,285,297,285,237,317,310,406,391,732,722,1053,920,823,904,1180,1040,1216,1048,1854,1928,1781,1668,2020,1998,1986,1649,2116,2086,1958,1183,1844,1612,4137,2504,29961,6049,6083,2175]} 1. d4 {[%emt 0:00:03]} Nf6 {[%emt 0:00:04]} 2. c4 {[%emt 0:00:06]} e6 {[%emt 0:00:04]} 3. Nc3 {[%emt 0:00:07]} Bb4 {[%emt 0:00:04]} 4. e3 {[%emt 0:00:10]} O-O {[%emt 0:00:15]} 5. Bd3 {[%emt 0:00:10]} d5 {[%emt 0:00:20]} 6. cxd5 {[%emt 0:00:15]} exd5 {[%emt 0:00:31]} 7. a3 {[%emt 0:00:11] E48: Nimzo-Indian: Rubinstein: 5 Bd3 d5 including 6 Ne2, but excluding 6 a3.} Bd6 {[%emt 0:01:27]} 8. Qc2 {[%emt 0:00:13]} Re8 {[%emt 0:05:37] [#]} 9. Nb5 $146 {[%emt 0:02:36] The position is equal.} ({Predecessor:} 9. Nge2 a6 10. b4 Nbd7 11. O-O c6 12. f3 a5 13. Rb1 axb4 14. axb4 Nf8 15. e4 dxe4 16. fxe4 {1-0 (42) Bluebaum,M (2663)-Donchenko,A (2599) Chess.com INT 2022}) 9... Nc6 {[%emt 0:00:16]} 10. Nxd6 {[%emt 0:07:53]} Qxd6 {[%emt 0:00:06]} 11. Ne2 {[%emt 0:00:55]} a5 {[%emt 0:17:39]} 12. f3 {[%emt 0:06:01]} b6 {[%emt 0:01:19]} 13. Bd2 {[%emt 0:03:54]} Bb7 {[%emt 0:22:54]} (13... Nb8 $14 {deserves consideration.}) 14. Rc1 {[%emt 0:03:09]} Rac8 {[%emt 0:02:04]} 15. Bb5 {[%emt 0:18:02][%cal Rb5c6]} Re6 {[%emt 0:00:38]} 16. O-O {[%emt 0:00:16]} Nd8 {[%emt 0:06:10]} 17. b4 {[%emt 0:06:37]} Qe7 {[%emt 0:08:40]} 18. bxa5 {[%emt 0:14:04]} bxa5 {[%emt 0:02:25]} 19. Qc3 {[%emt 0:12:21]} Ba6 {[%emt 0:08:11]} 20. Rb1 {[%emt 0:01:31]} Rb6 {[%emt 0:08:07]} 21. Bxa6 {[%emt 0:05:39]} Rxa6 {[%emt 0:00:02]} 22. Rb5 $36 {[%emt 0:00:18][%mdl 2048] White fights for an advantage.} a4 {[%emt 0:04:03]} 23. Nf4 {[%emt 0:00:45]} Rc6 {[%emt 0:02:21]} 24. Qb2 {[%emt 0:02:42]} Qd7 {[%emt 0:01:01]} 25. Nd3 {[%emt 0:00:21] Ne5 is the strong threat.} Rc2 {[%emt 0:05:29]} 26. Qxc2 $16 {[%emt 0:00:04]} Qxb5 {[%emt 0:00:02]} 27. Rb1 {[%emt 0:00:10]} Qc6 {[%emt 0:00:39]} 28. Nc5 {[%emt 0:03:48]} (28. Qxc6 $1 $16 {Threatening mate with Qa6.} Nxc6 29. Rb5) 28... Ne6 {[%emt 0:00:15]} (28... Nd7 $1 $14) 29. Qxa4 {[%emt 0:02:33] 0x0.001b5af9f3e6dp-1022s more active pieces.} Qxa4 {[%emt 0:00:04]} 30. Nxa4 {[%emt 0:00:02]} Ra8 {[%emt 0:00:04]} 31. Nc3 {[%emt 0:03:40]} h6 {[%emt 0:02:44]} 32. a4 {[%emt 0:00:41]} c5 {[%emt 0:00:04]} 33. dxc5 {[%emt 0:00:57]} Nxc5 {[%emt 0:00:02]} 34. Rb4 {[%emt 0:01:42]} Kf8 {[%emt 0:00:58]} (34... Ra6 $16 35. Kf1 Nfd7 36. Nxd5 Nxa4) 35. Kf1 {[%emt 0:01:44][%cal Oa4a5]} Ke7 {[%emt 0:00:17]} 36. Ke2 {[%emt 0:00:10]} Kd7 {[%emt 0:00:16]} 37. g4 {[%emt 0:00:39]} Kc6 {[%emt 0:00:18]} 38. h4 {[%emt 0:00:15]} Nfd7 {[%emt 0:00:31]} 39. Rd4 {[%emt 0:01:14]} Nb6 {[%emt 0:01:17][%cal Rc5a4] [#]} 40. a5 $1 {[%emt 0:00:29]} Ne6 {[%emt 0:02:24]} (40... Rxa5 $16 41. Nxd5 Ra7) 41. axb6 $18 {[%emt 0:32:11]} Nxd4+ {[%emt 0:00:50]} 42. exd4 {[%emt 0:00:00]} Ra6 {[%emt 0:00:45]} 43. Nd1 {[%emt 0:00:00]} (43. b7 Rb6 44. h5 Rxb7 $18) 43... Rxb6 {[%emt 0:03:06]} 44. Ne3 {[%emt 0:00:00]} g6 {[%emt 0:00:22]} 45. Nf1 {[%emt 0:00:00]} Rb2 {[%emt 0:00:25]} 46. Kd1 {[%emt 0:00:00]} ({White should play} 46. Ke1 $18) 46... Rb3 {[%emt 0:03:31]} (46... Kb5 $16 {is a better defense.} 47. Bxh6 Kc4) 47. Ke2 {[%emt 0:00:00]} Rb2 {[%emt 0:00:05]} 48. Ne3 $2 {[%emt 0:00:00]} ({Better is} 48. Ke1 $18) 48... Ra2 $2 {[%emt 0:01:17][%mdl 8192]} (48... Rb6 $1 $11) 49. Nd1 {[%emt 0:00:00]} h5 {[%emt 0:01:06]} (49... f6 {was necessary.} 50. Nc3 Rb2) 50. gxh5 {[%emt 0:00:00]} gxh5 {[%emt 0:00:02] [#]} 51. Ne3 $1 {[%emt 0:00:00]} Ra1 {[%emt 0:01:29]} 52. Nf5 {[%emt 0:00:00]} Ra6 {[%emt 0:09:10]} 53. Ng3 {[%emt 0:00:00]} Kb5 $2 {[%emt 0:00:06]} (53... Ra4 54. Ke3 (54. Nxh5 Rxd4 55. Nf4 Kd6 $18) 54... Ra8) 54. Nxh5 {[%emt 0:00:00]} Kc4 {[%emt 0:00:03]} 55. Be3 {[%emt 0:00:00]} Ra2+ {[%emt 0:03:54]} 56. Kf1 {[%emt 0:00:00]} Ra3 {[%emt 0:03:32]} 57. Kf2 {[%emt 0:00:00]} Ra2+ {[%emt 0:00:10]} 58. Kg3 {[%emt 0:00:00]} Kd3 {[%emt 0:00:12]} 59. Bf2 {[%emt 0:00:00]} Ke2 {[%emt 0:01:27]} 60. Kg2 {[%emt 0:01:41]} Kd3 {[%emt 0:02:12]} 61. Nf4+ {[%emt 0:00:10]} Kc4 {[%emt 0:00:13]} 62. h5 {[%emt 0:00:13][%cal Bh4h5,Bh5h6][%mdl 32]} Rb2 {[%emt 0:00:14]} 63. Kg3 {[%emt 0:00:25]} ({Weaker is} 63. h6 Rb6 $16) 63... Ra2 {[%emt 0:00:04]} 64. Nh3 {[%emt 0:02:22]} ({Less strong is} 64. h6 Ra6 65. Ng2 (65. h7 Rh6 $16) 65... Rxh6 66. Ne3+ Kd3 67. Nxd5 Rg6+ 68. Kh3 Kc4 $18) 64... Kd3 {[%emt 0:00:28]} 65. Kg4 {[%emt 0:00:17]} Ke2 {[%emt 0:00:17]} 66. Bh4 {[%emt 0:03:00] And now h6 would win.} Ke3 {[%emt 0:00:59]} 67. h6 {[%emt 0:00:55] White threatens h7 and mate.} Rg2+ {[%emt 0:00:16]} 68. Kf5 {[%emt 0:01:08] Weighted Error Value: White=0.20 (precise) /Black=0.32} 1-0

[Event "Frauenbundesliga 2021-22"]
[Site "Germany"]
[Date "2022.05.28"]
[Round "10.27"]
[White "Paehtz, Elisabeth"]
[Black "Batsiashvili, Nino"]
[Result "1/2-1/2"]
[ECO "B01"]
[WhiteElo "2497"]
[BlackElo "2463"]
[Annotator "TA"]
[PlyCount "59"]
[EventDate "2021.11.26"]
[EventType "team-tourn"]
[EventCountry "GER"]
[SourceTitle "playchess.com"]
[Source "ChessBase"]
[SourceQuality "1"]
[WhiteTeam "Baden-Baden"]
[BlackTeam "Schwaebisch Hall"]
[TimeControl "40/5400+30:1800+30"]

{[%evp 10,59,24,8,18,8,31,23,20,9,12,9,2,2,0,-1,5,-10,-4,-43,-47,-41,-37,-43,-39,-39,-35,-44,-18,-18,-17,-20,-20,-20,-11,-13,-8,-32,-29,-31,-30,-37,-18,-26,-26,-25,0,-1,0,-13,-13,-16]} 1. e4 {[%emt 0:00:03]} d5 {[%emt 0:00:05]} 2. exd5 {[%emt 0:00:06]} Qxd5 {[%emt 0:00:03]} 3. Nc3 {[%emt 0:00:06]} Qa5 {[%emt 0:00:06]} 4. Bc4 {[%emt 0:00:42]} Nf6 {[%emt 0:00:22]} 5. d3 {[%emt 0:00:08]} Bg4 {[%emt 0:00:20]} 6. f3 {[%emt 0:00:15]} Bd7 {[%emt 0:01:17] B01: Scandinavian Defence.} 7. Bd2 {[%emt 0:05:53]} Qb6 {[%emt 0:00:50]} 8. Qe2 {[%emt 0:03:56]} Nc6 {[%emt 0:04:23][%cal Bb8c6,Bc6d4,Bd4e2][%mdl 32] White has an edge.} 9. O-O-O {[%emt 0:09:47]} e6 {[%emt 0:00:48]} 10. Na4 {[%emt 0:15:45]} Nd4 {[%emt 0:17:05]} 11. Nxb6 {[%emt 0:00:03]} Nxe2+ {[%emt 0:00:05]} 12. Nxe2 {[%emt 0:00:03]} axb6 {[%emt 0:03:43] [#]} 13. Nc3 $146 {[%emt 0:05:31]} ({Predecessor:} 13. a3 b5 14. Bb3 Be7 15. c3 b6 16. d4 {½-½ (16) Pirs,M (2553)-Stephan,J (2555) ICCF email 2011}) 13... c6 {[%emt 0:00:44][%cal Bc7c6,Bc6b5,Bb5b4][%mdl 32]} 14. a4 {[%emt 0:02:20]} b5 {[%emt 0:01:37]} 15. axb5 {[%emt 0:00:46]} cxb5 {[%emt 0:05:50]} 16. Bb3 $1 {[%emt 0:00:03]} Ra1+ {[%emt 0:10:27]} 17. Nb1 {[%emt 0:00:04]} b4 {[%emt 0:06:41]} 18. Be3 {[%emt 0:13:04]} Ba4 {[%emt 0:02:22]} (18... Nd5 {is interesting.} 19. Kd2 Ba4 20. Bxd5 exd5 21. b3 Bd7) 19. Bxa4+ {[%emt 0:02:38]} Rxa4 {[%emt 0:00:08]} 20. c4 {[%emt 0:03:11] Against Nd5} bxc3 {[%emt 0:18:43]} 21. Nxc3 {[%emt 0:00:04]} Ra8 {[%emt 0:00:21]} 22. Kc2 {[%emt 0:03:48]} Bd6 {[%emt 0:01:15]} 23. Ne4 {[%emt 0:04:38]} Kd7 {[%emt 0:02:08]} 24. Nxf6+ {[%emt 0:03:51]} gxf6 {[%emt 0:00:01]} 25. Bd4 {[%emt 0:00:19]} Rhc8+ {[%emt 0:00:54]} 26. Bc3 {[%emt 0:00:50]} f5 {[%emt 0:01:07]} 27. g4 $1 {[%emt 0:02:01]} fxg4 {[%emt 0:02:45]} 28. fxg4 {[%emt 0:00:03] The position is equal.} f5 {[%emt 0:00:19]} 29. gxf5 {[%emt 0:00:19]} exf5 {[%emt 0:00:01]} 30. Rdf1 {[%emt 0:02:14] Weighted Error Value: White=0.05 (flawless) /Black=0.06 (flawless)} 1/2-1/2